fUSD/lending_fUSD_20250823
["ID","MTS","AMOUNT","RATE_DAILY","PERIOD"]
[380954267,1755912716230,-709.31,0.00015068,2]
[380954268,1755912716240,-400.0,0.00015068,2]
[380954269,1755912716378,-518.56,0.00015068,2]
[380954270,1755912716389,-507.56,0.00015068,2]
[380954271,1755912716399,-1049.21,0.00015068,2]
[380954272,1755912716408,-743.59,0.00015068,2]
[380954273,1755912716419,-400.0,0.00015068,2]
[380954274,1755912716429,-870.96,0.00015068,2]
[380954275,1755912716439,-400.0,0.00015068,2]
[380954276,1755912716449,-599.05,0.00015068,2]
[380954277,1755912716459,-400.0,0.00015068,2]
[380954278,1755912716469,-640.94,0.00015068,2]
[380954279,1755912716479,-878.26,0.00015068,2]
[380954280,1755912716488,-400.0,0.00015068,2]
[380954281,1755912716498,-784.45,0.00015068,2]
[380954282,1755912716508,-1743.04,0.00015068,2]
[380954283,1755912716517,-671.68,0.00015068,2]
[380954284,1755912716527,-983.76,0.00015068,2]
[380954285,1755912716536,-470.4,0.00015068,2]
[380954286,1755912716545,-538.86,0.00015068,2]
[380954287,1755912716555,-939.87,0.00015068,2]
[380954288,1755912716564,-582.18,0.00015068,2]
[380954289,1755912716574,-400.0,0.00015068,2]
[380954290,1755912716583,-400.0,0.00015068,2]
[380954291,1755912716593,-1021.93,0.00015068,2]
[380954292,1755912716602,-839.71,0.00015068,2]
[380954293,1755912716611,-400.0,0.00015068,2]
[380954294,1755912716621,-706.05,0.00015068,2]
[380954295,1755912716630,-890.17,0.00015068,2]
[380954296,1755912716639,-1278.62,0.00015068,2]
[380954297,1755912716648,-527.2,0.00015068,2]
[380954298,1755912716658,-649.66,0.00015068,2]
[380954299,1755912716667,-400.0,0.00015068,2]
[380954300,1755912716676,-634.12,0.00015068,2]
[380954301,1755912716686,-1099.97,0.00015068,2]
[380954302,1755912716695,-726.51,0.00015068,2]
[380954303,1755912716706,-784.4,0.00015068,2]
[380954304,1755912716715,-754.33,0.00015068,2]
[380954305,1755912716724,-985.25,0.00015068,2]
[380954306,1755912716734,-971.12,0.00015068,2]
[380954307,1755912716743,-1154.79,0.00015068,2]
[380954308,1755912716753,-691.37,0.00015068,2]
[380954309,1755912716763,-1203.18,0.00015068,2]
[380954310,1755912716773,-1157.08,0.00015068,2]
[380954311,1755912716782,-400.0,0.00015068,2]
[380954312,1755912716792,-535.95,0.00015068,2]
[380954313,1755912716802,-888.95,0.00015068,2]
[380954314,1755912716812,-500.0,0.00015068,2]
[380954315,1755912716821,-150.0,0.00015068,2]
[380954316,1755912716833,-656.19,0.00015068,2]
[380954317,1755912716844,-516.86122495,0.00015068,2]
[380954318,1755912716855,-807.2,0.00015068,2]
[380954319,1755912716866,-733.0,0.00015068,2]
[380954320,1755912716876,-1439.09,0.00015068,2]
[380954321,1755912716889,-659.77,0.00015068,2]
[380954322,1755912716898,-400.0,0.00015068,2]
[380954323,1755912716909,-583.57,0.00015068,2]
[380954324,1755912716919,-890.52,0.00015068,2]
[380954325,1755912716930,-731.16,0.00015068,2]
[380954326,1755912716939,-400.0,0.00015068,2]
[380954327,1755912716948,-400.0,0.00015068,2]
[380954328,1755912716958,-635.62,0.00015068,2]
[380954329,1755912716968,-422.20399899,0.00015068,2]
[380954330,1755912716978,-766.72,0.00015068,2]
[380954331,1755912716987,-855.77,0.00015068,2]
[380954332,1755912716997,-986.02,0.00015068,2]
[380954333,1755912717006,-963.55,0.00015068,2]
[380954334,1755912717015,-967.68,0.00015068,2]
[380954335,1755912717025,-400.0,0.00015068,2]
[380954336,1755912717035,-482.07,0.00015068,2]
[380954337,1755912717044,-400.0,0.00015068,2]
[380954338,1755912717053,-400.0,0.00015068,2]
[380954339,1755912717062,-400.0,0.00015068,2]
[380954340,1755912717071,-466.03,0.00015068,2]
[380954341,1755912717080,-859.0,0.00015068,2]
[380954342,1755912717089,-828.37,0.00015068,2]
[380954343,1755912717098,-507.72,0.00015068,2]
[380954344,1755912717107,-506.23,0.00015068,2]
[380954345,1755912717116,-1494.7,0.00015068,2]
[380954346,1755912717125,-777.58,0.00015068,2]
[380954347,1755912717135,-400.0,0.00015068,2]
[380954348,1755912717144,-400.0,0.00015068,2]
[380954349,1755912717153,-400.0,0.00015068,2]
[380954350,1755912717162,-781.12,0.00015068,2]
[380954351,1755912717171,-479.67,0.00015068,2]
[380954352,1755912717181,-937.77,0.00015068,2]
[380954353,1755912717190,-585.32,0.00015068,2]
[380954354,1755912717200,-755.98,0.00015068,2]
[380954355,1755912717211,-400.0,0.00015068,2]
[380954356,1755912717220,-941.46,0.00015068,2]
[380954357,1755912717229,-650.0,0.00015068,2]
[380954358,1755912717239,-1039.23,0.00015068,2]
[380954359,1755912717248,-400.0,0.00015068,2]
[380954360,1755912717256,-979.86,0.00015068,2]
[380954361,1755912717266,-498.14,0.00015068,2]
[380954362,1755912717274,-400.0,0.00015068,2]
[380954363,1755912717283,-958.27,0.00015068,2]
[380954364,1755912717293,-545.13,0.00015068,2]
[380954365,1755912717302,-873.74,0.00015068,2]
[380954366,1755912717311,-792.76,0.00015068,2]
[380954367,1755912717321,-903.77,0.00015068,2]
[380954368,1755912717330,-400.0,0.00015068,2]
[380954369,1755912717339,-505.4,0.00015068,2]
[380954370,1755912717348,-150.0,0.00015068,2]
[380954371,1755912717357,-764.74,0.00015068,2]
[380954372,1755912717366,-400.0,0.00015068,2]
[380954373,1755912717378,-822.02,0.00015068,2]
[380954374,1755912717388,-268.12408027,0.00015068,2]
[380954375,1755912717397,-400.0,0.00015068,2]
[380954376,1755912717406,-402.77568931,0.00015068,2]
[380954377,1755912717416,-400.0,0.00015068,2]
[380954378,1755912717425,-400.0,0.00015068,2]
[380954379,1755912717435,-400.0,0.00015068,2]
[380954380,1755912717444,-493.69,0.00015068,2]
[380954381,1755912717455,-550.01,0.00015068,2]
[380954382,1755912717465,-400.0,0.00015068,2]
[380954383,1755912717474,-151.85861216,0.00015068,2]
[380954384,1755912717483,-532.46,0.00015068,2]
[380954385,1755912717493,-400.0,0.00015068,2]
[380954386,1755912717502,-500.0,0.00015068,2]
[380954387,1755912717511,-400.0,0.00015068,2]
[380954388,1755912717520,-957.7,0.00015068,2]
[380954389,1755912717530,-400.0,0.00015068,2]
[380954390,1755912717539,-724.98,0.00015068,2]
[380954391,1755912717549,-712.18,0.00015068,2]
[380954392,1755912717558,-3061.19,0.00015068,2]
[380954393,1755912717567,-402.87,0.00015068,2]
[380954394,1755912717576,-484.95,0.00015068,2]
[380954395,1755912717585,-839.82,0.00015068,2]
[380954396,1755912717595,-1167.85,0.00015068,2]
[380954397,1755912717604,-400.0,0.00015068,2]
[380954398,1755912717613,-911.43,0.00015068,2]
[380954399,1755912717622,-400.0,0.00015068,2]
[380954400,1755912717631,-400.0,0.00015068,2]
[380954401,1755912717641,-668.01,0.00015068,2]
[380954402,1755912717650,-150.0,0.00015068,2]
[380954403,1755912717660,-440.73,0.00015068,2]
[380954404,1755912717669,-400.0,0.00015068,2]
[380954405,1755912717679,-631.42,0.00015068,2]
[380954406,1755912717689,-500.0,0.00015068,2]
[380954407,1755912717698,-400.0,0.00015068,2]
[380954408,1755912717709,-613.21,0.00015068,2]
[380954409,1755912717719,-931.59,0.00015068,2]
[380954410,1755912717728,-400.0,0.00015068,2]
[380954411,1755912717737,-150.0,0.00015068,2]
[380954412,1755912717746,-585.39,0.00015068,2]
[380954413,1755912717755,-400.0,0.00015068,2]
[380954414,1755912717765,-150.0,0.00015068,2]
[380954415,1755912717774,-821.68,0.00015068,2]
[380954416,1755912717783,-980.7,0.00015068,2]
[380954417,1755912717793,-464.46,0.00015068,2]
[380954418,1755912717802,-500.0,0.00015068,2]
[380954419,1755912717811,-400.0,0.00015068,2]
[380954420,1755912717821,-408.02,0.00015068,2]
[380954421,1755912717830,-840.52,0.00015068,2]
[380954422,1755912717839,-400.0,0.00015068,2]
[380954423,1755912717848,-627.98,0.00015068,2]
[380954424,1755912717857,-468.81,0.00015068,2]
[380954425,1755912717866,-400.0,0.00015068,2]
[380954426,1755912717876,-400.0,0.00015068,2]
[380954427,1755912717886,-300.0,0.00015068,2]
[380954428,1755912717895,-2118.87,0.00015068,2]
[380954429,1755912717904,-1000.0,0.00015083,2]
[380954430,1755912717914,-1000.0,0.00015083,2]
[380954431,1755912717923,-1000.0,0.00015083,2]
[380954432,1755912717932,-1000.0,0.00015083,2]
[380954433,1755912717941,-1000.0,0.00015083,2]
[380954434,1755912717951,-1000.0,0.00015083,2]
[380954435,1755912717961,-1000.0,0.00015083,2]
[380954436,1755912717970,-168.0,0.00015106,2]
[380954437,1755912717979,-10013.33385602,0.00015122,2]
[380954438,1755912717988,-4890.92630699,0.00015164,3]
[380954439,1755912717997,-1219.73909744,0.00015242,2]
[380954440,1755912718007,-166.12,0.00015248,2]
[380954441,1755912718015,-812.95380183,0.0001526,7]
[380954442,1755912718025,-1517.64,0.000153,2]
[380954443,1755912718034,-166.67,0.00015325,2]
[380954444,1755912718043,-214.0,0.0001534,2]
[380954445,1755912718052,-422.22,0.00015342,2]
[380954446,1755912718062,-500.0,0.00015342,2]
[380954447,1755912718071,-733.0,0.00015342,2]
[380954448,1755912718080,-500.0,0.00015342,2]
[380954449,1755912718090,-150.0,0.00015342,2]
[380954450,1755912718099,-500.0,0.00015342,2]
[380954451,1755912718109,-150.0,0.00015342,2]
[380954452,1755912718118,-150.0,0.00015342,2]
[380954453,1755912718127,-500.0,0.00015342,2]
[380954454,1755912718136,-404.24,0.00015342,2]
[380954455,1755912718146,-400.0,0.00015342,2]
[380954456,1755912718155,-400.0,0.00015342,2]
[380954457,1755912718164,-957.1,0.00015342,2]
[380954458,1755912718174,-400.0,0.00015342,2]
[380954459,1755912718183,-400.0,0.00015342,2]
[380954460,1755912718193,-500.5,0.00015342,2]
[380954461,1755912718202,-400.0,0.00015342,2]
[380954462,1755912718216,-630.13,0.00015342,2]
[380954463,1755912718226,-484.29,0.00015342,2]
[380954464,1755912718235,-691.2,0.00015342,2]
[380954465,1755912718246,-400.0,0.00015342,2]
[380954466,1755912718265,-564.0,0.00015342,2]
[380954467,1755912718283,-922.66,0.00015342,2]
[380954468,1755912718293,-1309.75,0.00015342,2]
[380954469,1755912718302,-400.0,0.00015342,2]
[380954470,1755912718312,-400.0,0.00015342,2]
[380954471,1755912718322,-410.64,0.00015342,2]
[380954472,1755912718332,-400.0,0.00015342,2]
[380954473,1755912718342,-400.0,0.00015342,2]
[380954474,1755912718351,-402.6,0.00015342,2]
[380954475,1755912718361,-400.0,0.00015342,2]
[380954476,1755912718371,-400.0,0.00015342,2]
[380954477,1755912718385,-400.0,0.00015342,2]
[380954478,1755912718395,-400.0,0.00015342,2]
[380954479,1755912718405,-400.0,0.00015342,2]
[380954480,1755912718415,-400.0,0.00015342,2]
[380954481,1755912718426,-400.0,0.00015342,2]
[380954482,1755912718437,-814.35,0.00015342,2]
[380954483,1755912718448,-703.72,0.00015342,2]
[380954484,1755912718461,-400.0,0.00015342,2]
[380954485,1755912718470,-400.0,0.00015342,2]
[380954486,1755912718480,-400.0,0.00015342,2]
[380954487,1755912718490,-400.0,0.00015342,2]
[380954488,1755912718501,-416.84,0.00015342,2]
[380954489,1755912718510,-400.0,0.00015342,2]
[380954490,1755912718520,-552.81,0.00015342,2]
[380954491,1755912718530,-565.22,0.00015342,2]
[380954492,1755912718540,-400.0,0.00015342,2]
[380954493,1755912718550,-400.0,0.00015342,2]
[380954494,1755912718560,-457.37,0.00015342,2]
[380954495,1755912718570,-400.0,0.00015342,2]
[380954496,1755912718580,-400.0,0.00015342,2]
[380954497,1755912718590,-400.0,0.00015342,2]
[380954498,1755912718600,-454.18,0.00015342,2]
[380954499,1755912718610,-400.0,0.00015342,2]
[380954500,1755912718619,-408.41,0.00015342,2]
[380954501,1755912718629,-539.62,0.00015342,2]
[380954502,1755912718639,-429.23,0.00015342,2]
[380954503,1755912718648,-400.0,0.00015342,2]
[380954504,1755912718658,-400.0,0.00015342,2]
[380954505,1755912718667,-400.0,0.00015342,2]
[380954506,1755912718677,-400.0,0.00015342,2]
[380954507,1755912718687,-400.0,0.00015342,2]
[380954508,1755912718697,-582.37,0.00015342,2]
[380954509,1755912718708,-400.0,0.00015342,2]
[380954510,1755912718717,-400.0,0.00015342,2]
[380954511,1755912718727,-400.0,0.00015342,2]
[380954512,1755912718737,-400.0,0.00015342,2]
[380954513,1755912718747,-400.0,0.00015342,2]
[380954514,1755912718757,-759.88,0.00015342,2]
[380954515,1755912718767,-591.39,0.00015342,2]
[380954516,1755912718776,-413.97,0.00015342,2]
[380954517,1755912718786,-649.74,0.00015342,2]
[380954518,1755912718796,-446.38,0.00015342,2]
[380954519,1755912718805,-506.47,0.00015342,2]
[380954520,1755912718814,-715.02,0.00015342,2]
[380954521,1755912718824,-400.0,0.00015342,2]
[380954522,1755912718833,-537.25,0.00015342,2]
[380954523,1755912718843,-400.0,0.00015342,2]
[380954524,1755912718853,-512.45,0.00015342,2]
[380954525,1755912718862,-400.0,0.00015342,2]
[380954526,1755912718872,-527.41,0.00015342,2]
[380954527,1755912718882,-400.0,0.00015342,2]
[380954528,1755912718892,-521.1,0.00015342,2]
[380954529,1755912718902,-400.0,0.00015342,2]
[380954530,1755912718911,-446.92,0.00015342,2]
[380954531,1755912718921,-449.44,0.00015342,2]
[380954532,1755912718930,-400.0,0.00015342,2]
[380954533,1755912718940,-675.1,0.00015342,2]
[380954534,1755912718949,-400.0,0.00015342,2]
[380954535,1755912718959,-400.0,0.00015342,2]
[380954536,1755912718969,-455.54,0.00015342,2]
[380954537,1755912718978,-609.3,0.00015342,2]
[380954538,1755912718987,-654.03,0.00015342,2]
[380954539,1755912718997,-400.0,0.00015342,2]
[380954540,1755912719006,-400.0,0.00015342,2]
[380954541,1755912719015,-661.96,0.00015342,2]
[380954542,1755912719025,-568.98,0.00015342,2]
[380954543,1755912719034,-400.0,0.00015342,2]
[380954544,1755912719044,-400.0,0.00015342,2]
[380954545,1755912719054,-400.0,0.00015342,2]
[380954546,1755912719066,-400.0,0.00015342,2]
[380954547,1755912719078,-400.0,0.00015342,2]
[380954548,1755912719087,-709.86,0.00015342,2]
[380954549,1755912719097,-400.0,0.00015342,2]
[380954550,1755912719107,-400.0,0.00015342,2]
[380954551,1755912719116,-812.84,0.00015342,2]
[380954552,1755912719126,-437.4,0.00015342,2]
[380954553,1755912719136,-586.38,0.00015342,2]
[380954554,1755912719146,-442.27,0.00015342,2]
[380954555,1755912719157,-400.0,0.00015342,2]
[380954556,1755912719167,-562.61,0.00015342,2]
[380954557,1755912719176,-400.0,0.00015342,2]
[380954558,1755912719186,-400.0,0.00015342,2]
[380954559,1755912719196,-845.65,0.00015342,2]
[380954560,1755912719207,-441.24,0.00015342,2]
[380954561,1755912719216,-529.98,0.00015342,2]
[380954562,1755912719226,-400.0,0.00015342,2]
[380954563,1755912719236,-400.0,0.00015342,2]
[380954564,1755912719245,-400.0,0.00015342,2]
[380954565,1755912719254,-570.39,0.00015342,2]
[380954566,1755912719264,-421.77,0.00015342,2]
[380954567,1755912719274,-400.0,0.00015342,2]
[380954568,1755912719284,-400.0,0.00015342,2]
[380954569,1755912719293,-400.0,0.00015342,2]
[380954570,1755912719303,-400.0,0.00015342,2]
[380954571,1755912719313,-400.0,0.00015342,2]
[380954572,1755912719323,-464.48,0.00015342,2]
[380954573,1755912719333,-400.0,0.00015342,2]
[380954574,1755912719342,-400.0,0.00015342,2]
[380954575,1755912719352,-400.0,0.00015342,2]
[380954576,1755912719362,-415.36,0.00015342,2]
[380954577,1755912719374,-530.98,0.00015342,2]
[380954578,1755912719383,-400.0,0.00015342,2]
[380954579,1755912719394,-398.48622765,0.00015342,2]
[380954580,1755912719403,-512.43,0.00015342,2]
[380954581,1755912719413,-516.79,0.00015342,2]
[380954582,1755912719423,-400.0,0.00015342,2]
[380954583,1755912719433,-400.0,0.00015342,2]
[380954584,1755912719443,-400.0,0.00015342,2]
[380954585,1755912719453,-400.0,0.00015342,2]
[380954586,1755912719463,-409.44,0.00015342,2]
[380954587,1755912719473,-400.0,0.00015342,2]
[380954588,1755912719482,-400.0,0.00015342,2]
[380954589,1755912719492,-400.0,0.00015342,2]
[380954590,1755912719502,-499.57,0.00015342,2]
[380954591,1755912719512,-400.0,0.00015342,2]
[380954592,1755912719522,-476.9,0.00015342,2]
[380954593,1755912719531,-577.94,0.00015342,2]
[380954594,1755912719541,-400.0,0.00015342,2]
[380954595,1755912719551,-637.7,0.00015342,2]
[380954596,1755912719561,-423.83,0.00015342,2]
[380954597,1755912719571,-400.0,0.00015342,2]
[380954598,1755912719581,-459.29,0.00015342,2]
[380954599,1755912719591,-873.47,0.00015342,2]
[380954600,1755912719601,-571.62,0.00015342,2]
[380954601,1755912719611,-409.95,0.00015342,2]
[380954602,1755912719621,-1704.41,0.00015342,2]
[380954603,1755912719631,-400.0,0.00015342,2]
[380954604,1755912719640,-549.98,0.00015342,2]
[380954605,1755912719650,-400.0,0.00015342,2]
[380954606,1755912719659,-400.0,0.00015342,2]
[380954607,1755912719669,-400.0,0.00015342,2]
[380954608,1755912719679,-400.0,0.00015342,2]
[380954609,1755912719688,-531.47,0.00015342,2]
[380954610,1755912719698,-456.18,0.00015342,2]
[380954611,1755912719707,-400.0,0.00015342,2]
[380954612,1755912719717,-400.0,0.00015342,2]
[380954613,1755912719727,-400.0,0.00015342,2]
[380954614,1755912719736,-890.29,0.00015342,2]
[380954615,1755912719746,-406.1,0.00015342,2]
[380954616,1755912719755,-378.78340837,0.00015342,2]
[380954617,1755912719765,-400.0,0.00015342,2]
[380954618,1755912719775,-400.0,0.00015342,2]
[380954619,1755912719785,-400.0,0.00015342,2]
[380954620,1755912719795,-421.32,0.00015342,2]
[380954621,1755912719805,-400.0,0.00015342,2]
[380954622,1755912719815,-478.43,0.00015342,2]
[380954623,1755912719825,-400.0,0.00015342,2]
[380954624,1755912719835,-487.04,0.00015342,2]
[380954625,1755912719845,-595.85,0.00015342,2]
[380954626,1755912719854,-400.0,0.00015342,2]
[380954627,1755912719864,-542.43,0.00015342,2]
[380954628,1755912719874,-510.81,0.00015342,2]
[380954629,1755912719884,-451.04,0.00015342,2]
[380954630,1755912719894,-400.0,0.00015342,2]
[380954631,1755912719904,-477.02,0.00015342,2]
[380954632,1755912719913,-667.8,0.00015342,2]
[380954633,1755912719923,-400.0,0.00015342,2]
[380954634,1755912719934,-400.0,0.00015342,2]
[380954635,1755912719943,-754.76,0.00015342,2]
[380954636,1755912719953,-400.0,0.00015342,2]
[380954637,1755912719964,-1030.1,0.00015342,2]
[380954638,1755912719974,-510.89,0.00015342,2]
[380954639,1755912719984,-400.0,0.00015342,2]
[380954640,1755912719993,-436.99,0.00015342,2]
[380954641,1755912720003,-657.25,0.00015342,2]
[380954642,1755912720014,-400.0,0.00015342,2]
[380954643,1755912720024,-400.0,0.00015342,2]
[380954644,1755912720034,-400.0,0.00015342,2]
[380954645,1755912720044,-417.45,0.00015342,2]
[380954646,1755912720054,-400.0,0.00015342,2]
[380954647,1755912720064,-400.0,0.00015342,2]
[380954648,1755912720074,-1067.81,0.00015342,2]
[380954649,1755912720084,-400.0,0.00015342,2]
[380954650,1755912720094,-400.0,0.00015342,2]
[380954651,1755912720103,-206.41836942,0.00015342,2]
[380954652,1755912720113,-578.42,0.00015342,2]
[380954653,1755912720124,-786.01,0.00015342,2]
[380954654,1755912720134,-400.0,0.00015342,2]
[380954655,1755912720144,-1145.67,0.00015342,2]
[380954656,1755912720153,-624.95,0.00015342,2]
[380954657,1755912720164,-400.0,0.00015342,2]
[380954658,1755912720174,-439.98,0.00015342,2]
[380954659,1755912720184,-400.0,0.00015342,2]
[380954660,1755912720194,-400.0,0.00015342,2]
[380954661,1755912720204,-734.24,0.00015342,2]
[380954662,1755912720215,-400.0,0.00015342,2]
[380954663,1755912720226,-716.27,0.00015342,2]
[380954664,1755912720236,-400.0,0.00015342,2]
[380954665,1755912720246,-400.0,0.00015342,2]
[380954666,1755912720256,-677.21,0.00015342,2]
[380954667,1755912720266,-400.0,0.00015342,2]
[380954668,1755912720276,-400.0,0.00015342,2]
[380954669,1755912720285,-400.0,0.00015342,2]
[380954670,1755912720295,-503.77,0.00015342,2]
[380954671,1755912720305,-400.0,0.00015342,2]
[380954672,1755912720315,-831.56,0.00015342,2]
[380954673,1755912720326,-651.98,0.00015342,2]
[380954674,1755912720336,-742.35,0.00015342,2]
[380954675,1755912720346,-541.87,0.00015342,2]
[380954676,1755912720356,-400.0,0.00015342,2]
[380954677,1755912720367,-400.0,0.00015342,2]
[380954678,1755912720381,-462.17,0.00015342,2]
[380954679,1755912720392,-400.0,0.00015342,2]
[380954680,1755912720402,-422.39,0.00015342,2]
[380954681,1755912720412,-400.0,0.00015342,2]
[380954682,1755912720423,-400.0,0.00015342,2]
[380954683,1755912720433,-535.7,0.00015342,2]
[380954684,1755912720442,-400.0,0.00015342,2]
[380954685,1755912720455,-601.7,0.00015342,2]
[380954686,1755912720466,-598.88,0.00015342,2]
[380954687,1755912720477,-400.0,0.00015342,2]
[380954688,1755912720488,-729.0,0.00015342,2]
[380954689,1755912720498,-400.0,0.00015342,2]
[380954690,1755912720508,-560.98,0.00015342,2]
[380954691,1755912720518,-400.0,0.00015342,2]
[380954692,1755912720529,-482.06,0.00015342,2]
[380954693,1755912720540,-648.16,0.00015342,2]
[380954694,1755912720550,-400.0,0.00015342,2]
[380954695,1755912720799,-485.12,0.00015342,2]
[380954696,1755912720809,-581.45,0.00015342,2]
[380954697,1755912720818,-400.0,0.00015342,2]
[380954698,1755912720828,-463.13,0.00015342,2]
[380954699,1755912720838,-607.66,0.00015342,2]
[380954700,1755912720847,-400.0,0.00015342,2]
[380954701,1755912720857,-400.0,0.00015342,2]
[380954702,1755912720866,-483.72,0.00015342,2]
[380954703,1755912720875,-506.32,0.00015342,2]
[380954704,1755912720885,-657.0,0.00015342,2]
[380954705,1755912720894,-460.21,0.00015342,2]
[380954706,1755912720904,-664.59,0.00015342,2]
[380954707,1755912720913,-400.0,0.00015342,2]
[380954708,1755912720923,-518.18,0.00015342,2]
[380954709,1755912720933,-548.04,0.00015342,2]
[380954710,1755912720949,-400.0,0.00015342,2]
[380954711,1755912720965,-623.23,0.00015342,2]
[380954712,1755912720975,-490.94,0.00015342,2]
[380954713,1755912720986,-400.0,0.00015342,2]
[380954714,1755912720997,-407.86,0.00015342,2]
[380954715,1755912721007,-538.71,0.00015342,2]
[380954716,1755912721017,-492.11,0.00015342,2]
[380954717,1755912721027,-585.32,0.00015342,2]
[380954718,1755912721037,-704.8,0.00015342,2]
[380954719,1755912721047,-420.77,0.00015342,2]
[380954720,1755912721058,-419.51,0.00015342,2]
[380954721,1755912721068,-536.25,0.00015342,2]
[380954722,1755912721078,-400.0,0.00015342,2]
[380954723,1755912721088,-416.08,0.00015342,2]
[380954724,1755912721098,-400.0,0.00015342,2]
[380954725,1755912721109,-400.0,0.00015342,2]
[380954726,1755912721119,-552.15,0.00015342,2]
[380954727,1755912721130,-685.75,0.00015342,2]
[380954728,1755912721141,-400.0,0.00015342,2]
[380954729,1755912721151,-400.0,0.00015342,2]
[380954730,1755912721162,-1265.94,0.00015342,2]
[380954731,1755912721172,-475.58,0.00015342,2]
[380954732,1755912721182,-400.0,0.00015342,2]
[380954733,1755912721193,-400.0,0.00015342,2]
[380954734,1755912721204,-433.85,0.00015342,2]
[380954735,1755912721215,-400.0,0.00015342,2]
[380954736,1755912721226,-400.0,0.00015342,2]
[380954737,1755912721237,-400.0,0.00015342,2]
[380954738,1755912721247,-400.0,0.00015342,2]
[380954739,1755912721257,-400.0,0.00015342,2]
[380954740,1755912721267,-400.0,0.00015342,2]
[380954741,1755912721277,-428.36,0.00015342,2]
[380954742,1755912721287,-427.61,0.00015342,2]
[380954743,1755912721298,-543.91,0.00015342,2]
[380954744,1755912721308,-1000.0,0.00015342,2]
[380954745,1755912721318,-400.0,0.00015342,2]
[380954746,1755912721330,-400.0,0.00015342,2]
[380954747,1755912721345,-400.0,0.00015342,2]
[380954748,1755912721355,-763.66,0.00015342,2]
[380954749,1755912721365,-400.0,0.00015342,2]
[380954750,1755912721379,-400.0,0.00015342,2]
[380954751,1755912721390,-400.0,0.00015342,2]
[380954752,1755912721400,-482.08,0.00015342,2]
[380954753,1755912721411,-552.38,0.00015342,2]
[380954754,1755912721422,-400.0,0.00015342,2]
[380954755,1755912721433,-793.95,0.00015342,2]
[380954756,1755912721444,-400.0,0.00015342,2]
[380954757,1755912721455,-400.0,0.00015342,2]
[380954758,1755912721467,-400.0,0.00015342,2]
[380954759,1755912721478,-476.99,0.00015342,2]
[380954760,1755912721489,-400.0,0.00015342,2]
[380954761,1755912721499,-400.0,0.00015342,2]
[380954762,1755912721509,-400.0,0.00015342,2]
[380954763,1755912721519,-400.0,0.00015342,2]
[380954764,1755912721530,-772.08,0.00015342,2]
[380954765,1755912721540,-607.86,0.00015342,2]
[380954766,1755912721551,-400.0,0.00015342,2]